Cogmind - Beta 10.2 @@@ ROGUE MODE // 2020.11.18 @ 19:53:36 Player: JollyJavelin Result: Core destroyed Performance ------------- Evolutions (1) 500 Regions Visited (2) 400 Robots Destroyed (11) 55 Value Destroyed (281) 281 Prototype IDs (0) 0 Alien Tech Used (0) 0 Bonus (0) 0 TOTAL SCORE: 1236 Bonus ------- None Cogmind --------- Core Integrity 0/400 Matter 133/300 Energy 100/100 System Corruption 0% Temperature Cool (6) Movement Core (150) Ox2 Location -9/Materials Parts ------- > --- POWER (1) -------- (None) > --- PROPULSION (3) --- (None) > --- UTILITY (3) ------ Medium Storage Unit > --- WEAPON (2) ------- (None) > --- INVENTORY (8) ---- Light Assault Rifle Grenade Launcher Mining Claw Peak State ------------ > --- POWER ------------ Light Ion Engine > --- PROPULSION ------- Aluminum Leg Aluminum Leg > --- UTILITY ---------- Medium Storage Unit Hacking Suite > --- WEAPON ----------- Light Assault Rifle Light Assault Rifle > --- INVENTORY -------- Hover Unit Grenade Launcher Datajack [Rating: 9] Favorites ----------- Power Light Ion Engine Engine Light Ion Engine Propulsion Aluminum Leg Leg Aluminum Leg Hover Unit Hover Unit Utility Medium Storage Unit Storage Medium Storage Unit Processor Targeting Computer Hackware Hacking Suite Weapon Light Assault Rifle Ballistic Gun Light Assault Rifle Launcher Grenade Launcher Slashing Weapon Mining Claw Special Melee Weapon Datajack Build | -11 -10 -9 ------- Run | Scr Mat Mat Slots Evolved 2 | . . 2 Power . | . . . Propulsion 1 | . . 1 Utility 1 | . . 1 Weapon . | . . . Parts Attached 21 | 6 12 3 Power 2 | 1 . 1 Engine 2 | 1 . 1 Core . | . . . Reactor . | . . . Propulsion 5 | 2 2 1 Treads . | . . . Leg 4 | 2 2 . Wheel . | . . . Hover 1 | . . 1 Flight . | . . . Utility 4 | 1 3 . Device . | . . . Storage 2 | 1 1 . Processor 1 | . 1 . Hackware 1 | . 1 . Protection . | . . . Artifact . | . . . Weapon 10 | 2 7 1 Energy Gun . | . . . Energy Cannon . | . . . Ballistic Gun 6 | 2 4 . Ballistic Cannon . | . . . Launcher 2 | . 2 . Special Weapon . | . . . Impact Weapon . | . . . Slashing Weapon 1 | . . 1 Piercing Weapon . | . . . Special Melee Weapon 1 | . 1 . Unidentified Prototypes . | . . . Parts Lost 8 | . 2 6 Power 1 | . . 1 Propulsion 3 | . . 3 Utility 1 | . 1 . Weapon 3 | . 1 2 Highest Loss Streak 6 | . 2 6 Average Slot Usage (%) 85 | . 94 51 Engine 12 | . 13 7 Leg 25 | . 27 16 Storage 13 | . 14 11 Processor 2 | . 3 . Hackware 5 | . 6 . Ballistic Gun 17 | . 20 6 Launcher 3 | . 2 4 Special Melee Weapon 3 | . 4 . Naked Turns . | . . . Heaviest Build 15 | 9 15 15 Greatest Support 20 | 20 20 20 Greatest Overweight (x) 3 | . 3 2 Average Overweight (x) . | . . . Largest Inventory Capacity 8 | 6 8 8 Average Capacity 7 | 5 7 8 Most Carried 6 | 4 6 4 Average Carried 2 | . 2 2 Final Capacity 8 | 6 8 8 Final Carried 3 | . 3 3 Class Distribution -------------------- 100% | Mutant Dominant Class ---------------- Mutant | -10/Materials Mutant | -9/Materials Resources | -11 -10 -9 ----------- Run | Scr Mat Mat Matter Collected 277 | 134 143 . Remotely . | . . . Salvage Created 229 | . 229 . Parts 17 | . 17 . Haulers Intercepted . | . . . Recyclers Shooed 1 | . 1 . Parts Field Recycled . | . . . Retrieved Matter . | . . . Parts Self-Destructed . | . . . Prevented . | . . . Kills | -11 -10 -9 ------- Run | Scr Mat Mat Combat Hostiles Destroyed 9 | . 9 . Guns 3 | . 3 . AOE 6 | . 6 . Classes Destroyed 4 | . 4 . Builder 1 | . 1 . Operator 1 | . 1 . Swarmer 3 | . 3 . Grunt 6 | . 6 . Best Kill Streak 5 | . 5 . Combat Bots Only 4 | . 4 . Max Kills in Single Turn 3 | . 3 . Gunslinging . | . . . Exploded 3 | . 3 . Melee . | . . . Uniques/NPCs Destroyed . | . . . Combat | -11 -10 -9 -------- Run | Scr Mat Mat Damage Taken 1040 | . 326 714 Core 483 | . 80 403 Absorbed by Shields . | . . . Core Remaining (%) 84 | 100 68 . Volleys Fired 26 | . 18 8 Largest 2 | . 2 1 Hottest 50 | . 50 20 Shots Fired 39 | . 31 8 Gun 32 | . 24 8 Cannon . | . . . Launcher 7 | . 7 . Special . | . . . Kinetic 32 | . 24 8 Thermal . | . . . Explosive 7 | . 7 . Electromagnetic . | . . . Robot Hit Streak 6 | . 6 3 Robot Miss Streak 5 | . 5 2 Penetration Max . | . . . Secondary Targets 1 | . 1 . Max Gunslinging Chain 1 | . 1 . Shots Hit Robots 32 | . 22 10 Core Hits 20 | . 19 1 Critical Hits . | . . . Critical Kills . | . . . Critical Parts Destroyed . | . . . Melee Attacks 24 | . 12 12 Impact . | . . . Slashing 12 | . . 12 Piercing . | . . . Sneak Attacks 6 | . 5 1 Combat Hostiles . | . . . Follow-up Attacks . | . . . Damage Inflicted 718 | . 516 202 Guns 136 | . 97 39 Cannons . | . . . Explosions 415 | . 415 . Melee 161 | . . 161 Ramming 6 | . 4 2 Kinetic 136 | . 97 39 Thermal . | . . . Explosive 415 | . 415 . Electromagnetic . | . . . Impact . | . . . Slashing 161 | . . 161 Piercing . | . . . Highest Corruption . | . . . Average Corruption . | . . . Corruption Purged . | . . . Overload Shots . | . . . Overflow Damage 26 | . . 26 Projectiles . | . . . Explosions . | . . . Melee 26 | . . 26 Knockbacks . | . . . Impact . | . . . Kinetic . | . . . Secondary . | . . . Self-Inflicted Damage 37 | . 37 . Shots 2 | . 2 . Rammed 6 | . 2 4 Targets Rammed 6 | . 2 4 Kicked . | . . . Crushed . | . . . Highest Temperature 19 | . 19 . Average Temperature 7 | . 7 . Received Heat Transfer 405 | . 120 285 Siege Activations . | . . . Robots Corrupted . | . . . Combat Hostiles . | . . . Parts Fried . | . . . Impact Corruptions . | . . . Robots Melted . | . . . Combat Hostiles . | . . . Parts Melted . | . . . Heat Transferred . | . . . Parts Sabotaged . | . . . Parts Stolen . | . . . Parts Stripped . | . . . Power Chain Reactions . | . . . Missiles Intercepted . | . . . Alert | -11 -10 -9 ------- Run | Scr Mat Mat Peak Influence 155 | . 155 112 Initial 54 | . . 54 Average 55 | . 52 79 Maximum Alert Level . | . . . Low Security (%) 100 | 100 100 100 Level 1 . | . . . Level 2 . | . . . Level 3 . | . . . Level 4 . | . . . Level 5 . | . . . High Security . | . . . Max Security . | . . . Squads Dispatched 2 | . 1 1 Investigation . | . . . Extermination . | . . . Reinforcement 2 | . 1 1 Assault . | . . . Garrison . | . . . Intercept . | . . . Construction Impeded . | . . . Haulers Reinforced . | . . . Stealth | -11 -10 -9 --------- Run | Scr Mat Mat Distress Signals 4 | . 1 3 Communications Jammed . | . . . Distress Signals . | . . . Times Spotted 32 | . 19 13 Peak Tracking Total 10 | . 5 10 Tactical Retreats 1 | . . 1 Traps | -11 -10 -9 ------- Run | Scr Mat Mat Traps Triggered 3 | . 3 . Indirectly . | . . . Trap Hack Attempts . | . . . Triggered . | . . . Disarmed . | . . . Reprogrammed . | . . . Reused . | . . . Traps Extracted . | . . . Installed . | . . . Triggered . | . . . Machines | -11 -10 -9 ---------- Run | Scr Mat Mat Machines Disabled 1 | . 1 . Max in Single Turn 1 | . 1 . Machines Sabotaged . | . . . Garrisons Compromised . | . . . Overloaded Fab Kills . | . . . Fab Network Shutdowns . | . . . Hacking | -11 -10 -9 --------- Run | Scr Mat Mat Machines Accessed 7 | . 6 1 Terminals 5 | . 4 1 Fabricators . | . . . Repair Stations . | . . . Recycling Units 2 | . 2 . Scanalyzers . | . . . Garrison Access . | . . . Total Hacks 23 | . 16 7 Successful 16 | . 12 4 Failed 7 | . 4 3 Catastrophic . | . . . Database Lockouts . | . . . Manual 11 | . 5 6 Terminals 19 | . 12 7 Fabricators . | . . . Repair Stations . | . . . Recycling Units 4 | . 4 . Scanalyzers . | . . . Garrison Access . | . . . Terminal Hacks 8 | . 4 4 Branch Access Points 1 | . . 1 Emergency Access Points 1 | . . 1 Terminal Index 1 | . . 1 Alert Level 1 | . . 1 Unreport Threat 1 | . 1 . Assault Status 1 | . 1 . Recall Investigation 1 | . 1 . Zone Layout 1 | . 1 . Fabricator Hacks . | . . . Repair Station Hacks . | . . . Recycling Unit Hacks 4 | . 4 . Process 1 | . 1 . Report Inventory 2 | . 2 . Retrieve Matter 1 | . 1 . Scanalyzer . | . . . Garrison Access Hacks . | . . . Unauthorized Hacks 4 | . 4 . Terminals 4 | . 4 . Track 3 | . 3 . Botnet 1 | . 1 . Fabricators . | . . . Repair Stations . | . . . Recycling Units . | . . . Scanalyzers . | . . . Garrison Access . | . . . Data Cores Recovered 1 | . 1 . Used 1 | . 1 . Hacking Detections 5 | . 4 1 Full Trace Events . | . . . Feedback Events . | . . . Feedback Blocked . | . . . Robot Schematics Acquired . | . . . Robots Built . | . . . Matter . | . . . Time . | . . . Total Robot Build Rating . | . . . Part Schematics Acquired . | . . . Parts Built . | . . . Matter . | . . . Time . | . . . Total Part Build Rating . | . . . Parts Repaired . | . . . Time . | . . . Parts Recycled . | . . . Recycled Matter 9 | . 9 . Retrieved Matter 9 | . 9 . Retrieved Components . | . . . Parts Scanalyzed . | . . . Part Schematics Acquired . | . . . Parts Damaged . | . . . Bothacking | -11 -10 -9 ------------ Run | Scr Mat Mat Used RIF Installer . | . . . Robots Hacked 4 | . 4 . Non-combat 4 | . 4 . Combat . | . . . Robot Hacks Applied 5 | . 5 . parse_system 4 | . 4 . no_distress 1 | . 1 . Relay Couplers Released . | . . . Robots Rewired . | . . . Allies Hacked . | . . . Hacks Repelled . | . . . Allies | -11 -10 -9 -------- Run | Scr Mat Mat Total Allies . | . . . Largest Group . | . . . Highest-Rated Group . | . . . Highest-Rated Ally . | . . . Total Orders . | . . . Ally Attacks . | . . . Total Damage . | . . . Kills . | . . . Allies Corrupted . | . . . Allies Melted . | . . . Intel | -11 -10 -9 ------- Run | Scr Mat Mat Robot Analysis Total . | . . . Derelict Logs Recovered . | . . . Drone Launches . | . . . Drone Recoveries . | . . . Exploration | -11 -10 -9 ------------- Run | Scr Mat Mat Turns Passed 901 | 44 684 173 Spaces Moved 566 | 35 446 85 Core 20 | 13 3 4 Treads . | . . . Legs 533 | 22 443 68 Wheels . | . . . Hover 13 | . . 13 Flight . | . . . Fastest Speed 50 | 50 120 120 Average Speed 119 | 94 120 121 Slowest Speed 200 | 120 200 150 Overloaded Moves . | . . . Propulsion Burnouts . | . . . Robots Hopped . | . . . Cave-ins Triggered . | . . . Exploration Rate (%) 29 | 3 74 12 Regions Visited 2 Branch Regions . Pre-discovered Areas . | . . . Known Exits Taken . | . . . Unknown Exits Taken 2 | 1 1 . Scrap Searched . | . . . Spaces Dug . | . . . Terrain Destroyed 47 | . 47 . Melee . | . . . Projectile . | . . . AOE 47 | . 47 . Terrain Rammed . | . . . Walls Destroyed . | . . . Machines Disabled . | . . . Actions | -11 -10 -9 --------- Run | Scr Mat Mat Total 719 | 46 551 122 Wait 59 | . 50 9 Move 564 | 34 445 85 Hop . | . . . Pick Up 18 | 6 10 2 Fast Attach . | . . . Attach 14 | 6 6 2 Detach 1 | . 1 . Swap 7 | . 6 1 Drop 1 | . 1 . Fire 26 | . 18 8 Melee 24 | . 12 12 Ram 3 | . . 3 Kick 2 | . 2 . Crush . | . . . Escape Stasis . | . . . Rewire . | . . . Trap . | . . . Miscellaneous . | . . . Route ------- -11/Scrapyard -10/Materials (discovered 3 exits: *Mat x2 / [*Min]) -9/Materials (discovered 2 exits: *Min x2) History --------- Turn | Location | Event 2 | -11/Scrapyard | Discovered new exit (range 16) 45 | -11/Scrapyard | Entered Materials 275 | -10/Materials | Discovered new exit (range 13) 306 | -10/Materials | Build established: Mutant 318 | -10/Materials | Discovered new exit (range 16) 542 | -10/Materials | Discovered new exit (range 15) 729 | -10/Materials | Entered another Materials area 729 | -9/Materials | Evolved 2 slots: Propulsion x1, Utility x1 778 | -9/Materials | Identified exit to Mines 879 | -9/Materials | Core integrity fell below 50% 900 | -9/Materials | Core integrity fell below 20% 902 | -9/Materials | Core destroyed Last Messages --------------- 00806_ K-01 Serf collects debris. 00814_ W-16 Scout sends out distress signal. 00818_ K-01 Serf collects debris. 00827_ W-16 Scout sends out distress signal. 00836_ Lgt. Assault Rifle destroyed. 00845_ Aluminum Leg destroyed. 00848_ Lgt. Ion Engine destroyed. 00859_ Acquired Mining Claw. 00868_ Sneak attack on U-05 Engineer. 00868_ Destroyed Lgt. Ion Engine. 00868_ Destroyed Welding Torch. 00871_ Aluminum Leg destroyed. 00874_ Mining Claw destroyed. 00875_ Slammed into G-34 Mercenary. 00892_ K-01 Serf collects debris. 00898_ Slammed into L-31 Rogue. 00899_ Hover Unit destroyed. 00899_ Slammed into L-31 Rogue. 00902_ Slammed into G-34 Mercenary. 00902_ Destabilizing: Core damaged (-20). Map ----- +----------------------------------------------------+ | ?????????????????? #??????????????????????????? | | ?????????????????? #??????????????????????????? | | ??????????????????# #?#????????????????????????? | | ??????????????????# # ?????????????????????????? | | ??????????????????# # ?????????????????????????? | | ??????????????????# /??????????????????????????? | | ??????????????????# #??????????????????????????? | | ??????????????????# #??????????????????????????? | | ??????????????????? #??????????????????????????? | | ?????????????????###/######??????????????????????? | | ?????????????????# #??????????????????????? | | ?????????????????# ! #???????????????######## | | ?????????????????# #???????????????? | | ?????????????????# #??#######?????? " """" | | ?????????????????# ! #??# #????? """"""" | | ?????????????????# ! #### #????# """ "" | | ?????????????????# / T #????# | | ?????????????????# #### ##############+ | | ?????????????????# "T" #??# | | ?????????????????##########??## ###### | | ??????????????????????????????# "" #?# | | ?????????????????#########????# ^ """ """#?####+ | | ?????????????????#""|"!""#????# """"" R"#?# | | ?????????????????# "|"!" #???## """"" """#?# " | | ??????????????#+## g#####g """"" ####?# " | | ???????# @gg g """ #????# " | | ???????# > l g #????# | | ???????# ou #????# " | | ????????#######+## ##### ##????# " | | ?????????????????#########???###+##### #?????# " | | ?????????????????????????????????????# #?????# | | ?????????????????????????????????????# ??????##### | | ?????????????????????????????????????# ??????????? | | ?????????????????????????????????????? ??????????? | | ?????????????????????????????????????? ??????????? | | ?????????????????????????????????????? ??????????? | | ?????????????????????????????????????????????????? | | ?????????????????????????????????????????????????? | | ?????????????????????????????????????????????????? | | ?????????????????????????????????????????????????? | | ?????????????????????????????????????????????????? | | ?????????????????????????????????????????????????? | | ?????????????????????????????????????????????????? | | ?????????????????????????????????????????????????? | | ?????????????????????????????????????????????????? | | ?????????????????????????????????????????????????? | | ?????????????????????????????????????????????????? | | ?????????????????????????????????????????????????? | | ?????????????????????????????????????????????????? | | ?????????????????????????????????????????????????? | +----------------------------------------------------+ Best States ------------- Heat Dissipation 28 Energy Generation 10 Energy Capacity 125 Matter Stores 176 Matter Capacity 300 Sight Range 16 Terrain Scan Density 10 Evasion (%) 50 Targeting Accuracy 5 Offensive Hacking 10 Item Schematics ----------------- None Robot Schematics ------------------ None Fabricated ------------ Nothing Alien Tech Used ----------------- None Achievements -------------- Dynamic Key Everything Is Under Control root@ Challenges ------------ None Game ------ Seed CentriumSupercompositeField Manual? 0 Play Time 00:18:36 Cumulative 6.4 hours Start 2020.11.18 @ 19:34:26 End 2020.11.18 @ 19:53:36 Sessions 1 Manual Loads 0 Difficulty Rogue Special Mode None Game No. 12 Rogue 11 Adventurer 1 Explorer 0 Win Type - Total 0 Types 0/0/0/0/0/0/0/0/0 Lore% 5 Gallery% 10 Achievement% 12 Wizard Run 0 Options --------- ASCII 0 Keyboard 1 Movement Numpad Keybinds 0 Fullscreen 2 Font 16/SmallcapsGlow Map View 76x50 Tactical HUD 1 Map Filters NONE Filters NONE Steam 1 RUN: a20643e2-d806-4a6b-9986-23f28e27e368